[Event "AUT Bundesliga 2021-22"]
[Site "Graz"]
[Date "2022.04.21"]
[Round "9.8"]
[White "Markus, Robert"]
[Black "Blohberger, Felix"]
[Result "1-0"]
[ECO "E10"]
[WhiteElo "2625"]
[BlackElo "2503"]
[Annotator "TA"]
[PlyCount "99"]
[EventDate "2021.01.17"]
[EventType "team-tourn"]
[EventCountry "AUT"]
[SourceTitle "playchess.com"]
[Source "ChessBase"]
[SourceQuality "1"]
[TimeControl "40/5400+30:1800+30"]

{[%evp 9,99,7,18,13,21,0,12,0,0,-1,9,0,19,16,21,12,27,25,23,24,33,33,37,22,19,11,18,17,18,7,8,9,0,0,4,0,17,0,24,8,32,25,53,52,45,54,257,183,194,195,187,192,171,120,115,115,117,117,117,117,115,112,110,105,157,157,204,204,222,225,200,204,292,284,446,264,348,152,207,197,592,614,609,543,751,736,614,572,1446,1446,1150,757]} 1. d4 {[%emt 0:00:04]} Nf6 {[%emt 0:00:08]} 2. c4 {[%emt 0:00:08][%cal Bc2c4,Bc4c5,Bc5b6][%mdl 32]} e6 {[%emt 0:00:42]} 3. Nf3 {[%emt 0:00:05]} a6 {[%emt 0:00:44]} 4. Nc3 {[%emt 0:03:57]} d5 {[%emt 0:01:38]} 5. c5 {[%emt 0:00:06]} b6 {[%emt 0:01:24]} 6. cxb6 {[%emt 0:00:06] D37: Queen's Gambit Declined: 5 Bf4.} c5 {[%emt 0:00:05][%cal Bc7c5,Bc5c4][%mdl 32]} (6... Nbd7 7. bxc7 Qxc7 8. Bd2 $14) 7. e3 {[%emt 0:02:08]} Nbd7 {[%emt 0:01:05]} 8. Bd3 {[%emt 0:00:05] [#] The position is equal.} c4 $146 {[%emt 0:06:11]} ({Predecessor:} 8... Qxb6 9. O-O Bd6 10. Na4 Qb8 11. Bd2 c4 12. Bc2 O-O 13. b3 cxb3 14. axb3 a5 {0-1 (39) Postny,E (2564)-Miljkovic,M (2470) Struga 2021}) 9. Bc2 {[%emt 0:02:53]} Bb7 {[%emt 0:02:47]} 10. O-O {[%emt 0:05:57]} Nxb6 {[%emt 0:04:54]} 11. Ne5 {[%emt 0:03:51][%cal Oe3e4]} Be7 {[%emt 0:01:56]} 12. b3 {[%emt 0:05:06]} cxb3 {[%emt 0:00:37]} 13. axb3 {[%emt 0:00:33]} O-O {[%emt 0:01:23]} 14. Ba3 {[%emt 0:06:10]} Bxa3 {[%emt 0:18:08]} 15. Rxa3 {[%emt 0:00:07]} Qd6 {[%emt 0:00:45]} 16. Ra2 {[%emt 0:04:50]} Rfc8 {[%emt 0:04:36]} 17. Ne2 {[%emt 0:01:40]} a5 {[%emt 0:13:58]} 18. Qa1 {[%emt 0:07:21]} Nbd7 {[%emt 0:11:44]} 19. Bd3 {[%emt 0:18:47]} Qb6 {[%emt 0:01:18]} 20. Nxd7 {[%emt 0:03:05]} Nxd7 {[%emt 0:00:06]} 21. Rb1 {[%emt 0:00:06]} g6 {[%emt 0:06:59]} 22. Nf4 {[%emt 0:03:40]} Bc6 {[%emt 0:04:31]} 23. h4 {[%emt 0:06:54]} Rcb8 {[%emt 0:04:30]} 24. Rc1 {[%emt 0:06:59]} Rc8 {[%emt 0:01:47]} 25. Rac2 {[%emt 0:01:39]} Bb7 {[%emt 0:00:38]} 26. Qa3 {[%emt 0:02:16]} Rxc2 {[%emt 0:04:33]} 27. Rxc2 {[%emt 0:00:50]} Rc8 $2 {[%emt 0:00:10]} (27... Re8 $14) 28. Qe7 {[%emt 0:05:37]} Rxc2 {[%emt 0:02:33]} 29. Bxc2 {[%emt 0:00:06]} Bc6 {[%emt 0:02:19] [#]} 30. h5 $1 {[%emt 0:02:15][%cal Rc2g6] White threatens Bxg6! and mate.} Qb4 {[%emt 0:02:02]} 31. Qxb4 {[%emt 0:01:27]} ({Better is} 31. Qd8+ $18 Kg7 32. Qg5 (32. h6+ Kxh6 33. g4 Kg7 $11)) 31... axb4 $16 {[%emt 0:00:05]} 32. hxg6 {[%emt 0:00:04]} hxg6 $18 {[%emt 0:00:05][%mdl 4096] Endgame KBN-KBN} 33. Nd3 {[%emt 0:00:03]} Bb5 {[%emt 0:00:31]} 34. Nxb4 {[%emt 0:00:07]} Kf8 {[%emt 0:00:12]} 35. f3 {[%emt 0:01:08]} Ke7 {[%emt 0:00:14]} 36. Kf2 {[%emt 0:00:05]} Kd6 {[%emt 0:00:30]} (36... Nb6 $142 37. g4 g5) 37. Bd3 $16 {[%emt 0:05:41]} Bxd3 {[%emt 0:00:08]} (37... Bc6 $16 {was called for.} 38. Nxc6 Kxc6) 38. Nxd3 {[%emt 0:00:04] KN-KN} g5 {[%emt 0:01:14]} 39. Ke2 {[%emt 0:01:51][%cal Od3e5] [#] aiming for Ne5!} f6 {[%emt 0:00:28] Inhibits Ne5.} 40. Kd2 {[%emt 0:00:00]} Kc6 {[%emt 0:00:00]} (40... Nf8 {is a better defense.} 41. b4 Ng6) 41. g4 $18 {[%emt 0:03:09]} e5 {[%emt 0:06:49]} (41... Nf8 $142 42. e4 dxe4 43. fxe4 Ng6) 42. Kc3 {[%emt 0:03:26]} (42. dxe5 $142 fxe5 43. f4 exf4 44. exf4 gxf4 45. g5 (45. Nxf4 Ne5 $11)) 42... Kd6 {[%emt 0:14:52]} 43. Nf2 {[%emt 0:04:22]} (43. dxe5+ $18 {is more deadly.} fxe5 44. Nf2) 43... Nf8 {[%emt 0:01:22]} (43... exd4+ $16 44. exd4 (44. Kxd4 Ne5 $16) 44... Nf8) 44. dxe5+ {[%emt 0:03:58]} fxe5 $2 {[%emt 0:00:38]} (44... Kxe5 {is more resistant.} 45. b4 Ne6) 45. e4 {[%emt 0:00:23] White is clearly winning.} d4+ {[%emt 0:01:50]} 46. Kc4 {[%emt 0:00:05]} Ne6 {[%emt 0:02:04]} 47. Nd3 {[%emt 0:01:12]} Nf8 {[%emt 0:00:52]} 48. Kb5 {[%emt 0:02:12]} Ne6 {[%emt 0:01:53]} 49. b4 {[%emt 0:00:34]} Nc7+ {[%emt 0:00:06]} 50. Ka5 {[%emt 0:04:34] Weighted Error Value: White=0.18 (very precise) /Black=0.33} 1-0

[Event "AUT Bundesliga 2021-22"]
[Site "Graz"]
[Date "2022.04.21"]
[Round "9.10"]
[White "Mesaros, Florian"]
[Black "Peyrer, Konstantin"]
[Result "0-1"]
[ECO "E12"]
[WhiteElo "2419"]
[BlackElo "2301"]
[Annotator "TA"]
[PlyCount "68"]
[EventDate "2021.01.17"]
[EventType "team-tourn"]
[EventCountry "AUT"]
[SourceTitle "playchess.com"]
[Source "ChessBase"]
[SourceQuality "1"]
[TimeControl "40/5400+30:1800+30"]

{[%evp 18,68,24,27,64,20,23,31,65,0,-1,-21,0,-33,20,-12,0,-54,-40,-28,-46,-31,-28,-45,0,0,0,0,-17,-33,64,-543,-521,-516,-505,-1094,-723,-731,-731,-726,-648,-29990,-29991,-29993,-29994,-29994,-29995,-29995,-29995,-29995,-29996,-29996,-29997]} 1. d4 {[%emt 0:00:08]} Nf6 {[%emt 0:00:12]} 2. c4 {[%emt 0:00:07]} e6 {[%emt 0:00:03]} 3. Nf3 {[%emt 0:01:14]} b6 {[%emt 0:00:15]} 4. a3 {[%emt 0:08:36]} Ba6 {[%emt 0:00:20]} 5. Qc2 {[%emt 0:03:51]} Bb7 {[%emt 0:01:33]} 6. Nc3 {[%emt 0:01:01]} c5 {[%emt 0:00:12]} 7. e4 {[%emt 0:05:43]} cxd4 {[%emt 0:03:30]} 8. Nxd4 {[%emt 0:00:23]} Bc5 {[%emt 0:00:08]} 9. Nb3 {[%emt 0:05:01]} Nc6 {[%emt 0:00:24]} 10. Bd3 {[%emt 0:05:09]} Ng4 {[%emt 0:13:05] [#] E12: Queen's Indian: Unusual White 4th moves, 4 a3, 4 Nc3 Bb7 5 a3 and 4 Nc3 Bb7 .} 11. O-O $146 {[%emt 0:13:03]} (11. Nxc5 bxc5 12. Qd1) ({Predecessor:} 11. Nxc5 bxc5 12. Nb5 O-O 13. Be2 Nf6 14. Bg5 a6 15. Nd6 Qc7 16. Bxf6 Qxd6 17. Rd1 Nd4 18. Bxd4 cxd4 {0-1 (41) Driessens,P (2276)-Berg,E (2574) Maastricht 2007}) 11... Qb8 {[%emt 0:12:44][%csl Gg4][%cal Rb8h2] [#]} 12. g3 {[%emt 0:02:46]} h5 {[%emt 0:00:40][%cal Bh7h5,Bh5h4][%mdl 32] White is slightly better.} 13. Qe2 {[%emt 0:11:01]} (13. Bf4 $14 Nge5 14. Be2 (14. Nxc5 bxc5 15. Bxe5 Qxe5 $11)) 13... Nge5 $11 {[%emt 0:02:47]} 14. Bf4 {[%emt 0:05:29]} h4 {[%emt 0:01:57]} 15. Rad1 {[%emt 0:03:24]} f6 {[%emt 0:08:29]} (15... Be7 $15) 16. Nxc5 {[%emt 0:10:56]} bxc5 {[%emt 0:02:43]} 17. Be3 {[%emt 0:00:41]} (17. Bxe5 $11 Nxe5 18. f4 hxg3 19. fxe5 Qxe5 20. hxg3 Qxg3+ 21. Qg2 Qe3+ 22. Rf2) 17... Nd4 {[%emt 0:02:39]} 18. Bxd4 {[%emt 0:00:14]} cxd4 {[%emt 0:00:03]} 19. Nb5 {[%emt 0:00:15]} hxg3 {[%emt 0:00:35]} 20. fxg3 {[%emt 0:07:51]} Nxd3 {[%emt 0:00:55]} 21. Rxd3 {[%emt 0:02:38]} e5 {[%emt 0:01:57] [#] aiming for ...a6.} 22. c5 {[%emt 0:05:21] And now Nd6+ would win.} Ba6 $36 {[%emt 0:02:10][%mdl 2048] Black is more active.} 23. Nd6+ {[%emt 0:02:40]} Kf8 {[%emt 0:00:11]} (23... Ke7 $15 24. Nf5+ (24. Qg4 Qg8 $17) 24... Kd8) 24. Qg4 $2 {[%emt 0:02:54][%mdl 8192] Loses the game.} Bxd3 $19 {[%emt 0:00:32]} ({Worse is} 24... Qxb2 25. Rf2 Qb1+ 26. Rd1 $11) 25. Qxd7 {[%emt 0:00:10][%csl Gd6][%cal Rd7f7]} Qb3 {[%emt 0:01:08] Inhibits Qf7+.} 26. Nc8 {[%emt 0:02:06]} (26. Rf2 $142 Bc4 27. Nc8 Qd1+ 28. Kg2) 26... Rh6 {[%emt 0:02:14]} 27. Qd8+ {[%emt 0:00:38]} Kf7 {[%emt 0:00:08][%cal Bf8f7,Bf7g6,Bg6g5,Bg5g4,Bg4g3,Bg3f4][%mdl 32]} 28. Nd6+ {[%emt 0:00:36]} Kg6 {[%emt 0:00:07]} 29. Qxa8 {[%emt 0:00:12][%cal Oa8c8] Threatens to win with Qc8!} Bxf1 {[%emt 0:00:43] Black mates.} 30. Nf5 {[%emt 0:00:41]} Qf3 {[%emt 0:00:28][%csl Gf1][%cal Rf3g2]} 31. Ne7+ {[%emt 0:00:39]} Kg5 {[%emt 0:00:08][%csl Gf1][%cal Rf3g2]} 32. h4+ {[%emt 0:00:11]} Kg4 {[%emt 0:00:09][%csl Gf1][%cal Rf3g2]} 33. Qc8+ {[%emt 0:00:23]} Kxg3 {[%emt 0:00:10][%csl Gf1,Gg3][%cal Rf3g2]} 34. Nf5+ {[%emt 0:00:10]} Kf4 {[%emt 0:00:05] Weighted Error Value: White=0.91/Black=0.37} 0-1

[Event "AUT Bundesliga 2021-22"]
[Site "Graz"]
[Date "2022.04.21"]
[Round "9.11"]
[White "Schneider-Zinner, Harald"]
[Black "Poetz, Florian"]
[Result "1/2-1/2"]
[ECO "A46"]
[WhiteElo "2370"]
[BlackElo "2424"]
[Annotator "TA"]
[PlyCount "121"]
[EventDate "2021.01.17"]
[EventType "team-tourn"]
[EventCountry "AUT"]
[SourceTitle "playchess.com"]
[Source "ChessBase"]
[SourceQuality "1"]
[TimeControl "40/5400+30:1800+30"]

{[%evp 9,121,17,14,0,12,2,8,3,22,18,20,29,29,27,31,22,23,16,16,12,34,20,32,26,27,0,23,9,22,-107,-113,-128,-123,-128,0,-60,-57,-62,-66,-66,-64,-64,-64,-64,-49,-49,-49,-57,-27,-41,-39,-50,-41,-45,-36,-32,-34,-51,-33,-84,-45,-82,-66,-60,-72,-60,-14,-53,-53,-52,-52,-53,-53,-57,-60,-60,-60,-79,0,0,0,0,0,0,0,0,0,0,0,0,0,0,0,0,0,0,0,-28000,-28000,-28000,-28000,-28000,-28000,-28000,-28000,-28000,-28000,-28000,-28000,-28000,-28000,-28000,-28000,-28000]} 1. d4 {[%emt 0:00:09]} Nf6 {[%emt 0:00:08]} 2. Nf3 {[%emt 0:00:16]} e6 {[%emt 0:00:22]} 3. g3 {[%emt 0:00:42]} b5 {[%emt 0:02:38]} 4. e3 {[%emt 0:01:12]} a6 {[%emt 0:02:54]} 5. a4 {[%emt 0:00:29]} b4 {[%emt 0:00:51]} 6. Bg2 {[%emt 0:00:26] A46: 1 d4 Nf6 2 Nf3 e6: Torre, London and Colle Systems.} Bb7 {[%emt 0:00:16]} 7. O-O {[%emt 0:00:39]} Be7 {[%emt 0:04:01]} 8. c4 {[%emt 0:01:12] The position is equal.} O-O {[%emt 0:01:58]} 9. b3 {[%emt 0:00:42]} d5 {[%emt 0:13:11]} 10. Nbd2 {[%emt 0:02:36]} c5 {[%emt 0:09:10]} 11. Bb2 {[%emt 0:02:02]} Nbd7 {[%emt 0:07:46]} 12. Rc1 {[%emt 0:03:02]} Rc8 {[%emt 0:01:10]} 13. Qe2 {[%emt 0:03:42] [#]} cxd4 $146 {[%emt 0:02:47]} ({Predecessor:} 13... dxc4 14. Nxc4 cxd4 15. Nxd4 Bxg2 16. Kxg2 Nc5 17. Rfd1 Qc7 18. Qf3 Nfe4 19. Nd2 Ng5 {1-0 (32) Berkes,F (2681)-Durakovic,A (2272) Schwarzach 2019}) 14. Nxd4 {[%emt 0:10:14]} Nc5 {[%emt 0:02:06]} 15. Rfd1 {[%emt 0:02:43]} Qb6 {[%emt 0:02:12]} 16. cxd5 {[%emt 0:04:25]} Bxd5 {[%emt 0:05:52]} 17. Nc4 {[%emt 0:03:32]} Qb8 {[%emt 0:03:29]} 18. Bxd5 {[%emt 0:15:51]} Nxd5 {[%emt 0:00:57]} 19. Nf5 {[%emt 0:03:39]} exf5 $17 {[%emt 0:00:27]} 20. Rxd5 {[%emt 0:00:05]} Nxb3 {[%emt 0:03:47]} 21. Rcd1 {[%emt 0:02:36]} Nc5 {[%emt 0:03:30] Prevents Rd7.} (21... Qc7 $17 22. Nd6 Bxd6 23. Rxd6 Qc2 24. Qxc2 Rxc2) 22. Be5 {[%emt 0:09:10]} (22. a5 $11) 22... Qb7 $15 {[%emt 0:07:36]} 23. Nd6 {[%emt 0:01:49]} Bxd6 {[%emt 0:00:11]} 24. Bxd6 {[%emt 0:00:45]} Nxa4 {[%emt 0:02:33][%cal Bc5a4,Ba4c3,Bc3e4][%mdl 32]} 25. Bxf8 {[%emt 0:13:00]} Nc3 {[%emt 0:00:25]} 26. Qd3 {[%emt 0:03:10]} ({Avoid the trap} 26. Qb2 $2 Rxf8 27. Qb3 Nxd5 28. Rxd5 Rc8 $19) 26... Qxd5 {[%emt 0:03:52]} 27. Bxb4 {[%emt 0:00:29]} Qxd3 {[%emt 0:03:28]} 28. Rxd3 {[%emt 0:00:02][%mdl 4096] Endgame KRB-KRN} Ne4 {[%emt 0:00:49]} 29. f3 {[%emt 0:03:21]} Ng5 {[%emt 0:00:32]} 30. Kf2 {[%emt 0:01:49]} Rc2+ {[%emt 0:02:32]} 31. Bd2 $1 {[%emt 0:00:31][%cal Rd3d8] [#]} h5 {[%emt 0:01:59]} 32. Ke2 {[%emt 0:01:34]} Ne6 {[%emt 0:06:57]} 33. Rd5 {[%emt 0:02:43]} g6 {[%emt 0:00:30]} 34. Kd3 {[%emt 0:02:56]} ({White should play} 34. h4 $15) 34... Rc8 {[%emt 0:00:53]} 35. Ba5 {[%emt 0:02:36]} Rc5 {[%emt 0:03:22]} 36. e4 {[%emt 0:00:14]} fxe4+ {[%emt 0:00:26]} 37. fxe4 {[%emt 0:00:01]} f5 {[%emt 0:02:23]} (37... Rb5 $15 {is superior.} 38. Bc3 Rb6) 38. Rd6 {[%emt 0:03:16]} fxe4+ {[%emt 0:00:19]} 39. Ke3 {[%emt 0:00:16]} Rxa5 {[%emt 0:01:02]} 40. Rxe6 {[%emt 0:00:00] KR-KR} Kf7 {[%emt 0:00:00]} 41. Rxe4 {[%emt 0:00:30]} Kf6 {[%emt 0:14:53] [#] aiming for ...Re5.} 42. Rc4 {[%emt 0:07:30]} Re5+ {[%emt 0:02:40]} 43. Kf3 {[%emt 0:01:13]} g5 {[%emt 0:07:08]} ({Better is} 43... Kf5 $17) 44. Rc6+ $11 {[%emt 0:08:05]} Re6 {[%emt 0:00:06]} 45. Rc8 {[%emt 0:00:14]} a5 {[%emt 0:01:19]} 46. Ra8 {[%emt 0:04:08]} Re5 {[%emt 0:00:20]} 47. h3 {[%emt 0:01:07]} Ke7 {[%emt 0:05:19]} 48. Ra7+ {[%emt 0:04:34]} Kd6 {[%emt 0:00:29] ...Kc6 is the strong threat.} 49. Rh7 {[%emt 0:03:07]} Kc5 {[%emt 0:00:37] Threatens to win with ...a4.} (49... a4 $5 50. Ra7 Rf5+ 51. Ke4 (51. Kg2 Ke6 $11) 51... Rc5 $11) 50. Rxh5 {[%emt 0:00:35]} a4 {[%emt 0:00:04][%cal Og5g4] Strongly threatening ...g4+!} 51. Rh8 {[%emt 0:01:43]} a3 {[%emt 0:00:18]} 52. h4 {[%emt 0:03:38]} gxh4 $2 {[%emt 0:01:11][%mdl 8192]} (52... g4+ $11 53. Kxg4 Kb4) 53. Rxh4 {[%emt 0:00:29]} Kb5 {[%emt 0:00:42] Against Ra4. Mate.} 54. Kf4 {[%emt 0:00:59]} Re1 {[%emt 0:00:28]} 55. Rh2 {[%emt 0:00:35]} Kb4 {[%emt 0:00:07]} 56. g4 {[%emt 0:00:11]} Kb3 {[%emt 0:00:08]} 57. g5 {[%emt 0:00:51]} a2 {[%emt 0:00:08]} 58. Rxa2 {[%emt 0:00:05]} Kxa2 {[%emt 0:00:03]} 59. Kf5 {[%emt 0:00:08]} Rg1 {[%emt 0:00:15]} 60. g6 {[%emt 0:00:05]} Rxg6 {[%emt 0:00:21]} 61. Kxg6 {[%mdl 32768] Weighted Error Value: White=0.12 (very precise) /Black=0.08 (flawless) . An unexpected result.} 1/2-1/2

[Event "AUT Bundesliga 2021-22"]
[Site "Graz"]
[Date "2022.04.21"]
[Round "9.12"]
[White "Csonka, Attila Istvan"]
[Black "Steindl, Johannes"]
[Result "0-1"]
[ECO "B53"]
[WhiteElo "2334"]
[BlackElo "2237"]
[Annotator "TA"]
[PlyCount "64"]
[EventDate "2021.01.17"]
[EventType "team-tourn"]
[EventCountry "AUT"]
[SourceTitle "playchess.com"]
[Source "ChessBase"]
[SourceQuality "1"]
[TimeControl "40/5400+30:1800+30"]

{[%evp 24,64,50,41,54,33,79,45,50,43,50,18,24,18,19,0,25,-40,29,-21,-22,-68,-14,-106,-104,-111,-125,-419,-395,-647,-572,-710,-706,-687,-673,-967,-932,-3201,-2180,-29983,-29983,-29979,-29980]} 1. e4 {[%emt 0:00:04]} c5 {[%emt 0:00:03]} 2. Nf3 {[%emt 0:00:05]} d6 {[%emt 0:00:04]} 3. d4 {[%emt 0:00:06]} cxd4 {[%emt 0:00:03]} 4. Qxd4 {[%emt 0:00:07]} Nc6 {[%emt 0:00:05]} 5. Bb5 {[%emt 0:00:06]} Bd7 {[%emt 0:00:04]} 6. Bxc6 {[%emt 0:00:07]} Bxc6 {[%emt 0:00:18]} 7. Nc3 {[%emt 0:00:06]} Nf6 {[%emt 0:00:39]} 8. Bg5 {[%emt 0:01:17]} e6 {[%emt 0:00:12]} 9. O-O-O {[%emt 0:00:25]} Be7 {[%emt 0:00:04]} 10. Rhe1 {[%emt 0:00:15]} O-O {[%emt 0:06:10]} 11. Kb1 {[%emt 0:00:54]} Qa5 {[%emt 0:02:15]} 12. Qd2 {[%emt 0:01:34]} Kh8 {[%emt 0:09:37]} 13. Nd4 {[%emt 0:02:03][%cal Og2g4]} Rac8 {[%emt 0:03:16] B53: Sicilian: 2...d6: Lines with Qxd4.} 14. f3 {[%emt 0:01:55]} (14. Nxc6 Rxc6 15. f3 Rfc8 $11) 14... Rfe8 {[%emt 0:04:47]} (14... a6 $14 {deserves consideration.}) 15. g4 {[%emt 0:02:59]} ({Reject} 15. Nxc6 bxc6 16. Ne2 Qxd2 17. Bxd2 d5 $11) (15. Bxf6 $5 gxf6 16. Ncb5 $1 (16. Nxc6 bxc6 17. Qf4 Qg5 $11) 16... Qxd2 17. Rxd2 $14) 15... a6 {[%emt 0:11:44] White is slightly better.} 16. h4 {[%emt 0:09:26]} b5 {[%emt 0:02:00] [#]} 17. Bxf6 $146 {[%emt 0:03:26]} ({Predecessor:} 17. a3 Bb7 18. Nb3 Qc7 19. Ne2 Red8 20. Nf4 e5 21. Bxf6 Bxf6 22. g5 Be7 23. Nd5 Bxd5 24. exd5 {1-0 (74) Vasiukov,E (2460)-Iliushkin,E (2304) Plovdiv 2013}) 17... Bxf6 {[%emt 0:05:16]} 18. g5 {[%emt 0:01:15]} Be7 {[%emt 0:02:35]} 19. f4 {[%emt 0:03:50]} Bb7 {[%emt 0:06:09]} (19... Ba8 $5 {[%cal Rb5b4]}) 20. Re3 {[%emt 0:18:46]} (20. a3 $11) 20... Rc4 {[%emt 0:10:27]} ({Black should play} 20... b4 $1 $15 21. Nce2 Rc4) 21. h5 {[%emt 0:05:16]} ({Better is} 21. a3) 21... b4 $11 {[%emt 0:04:49]} 22. Nce2 {[%emt 0:00:54]} Rec8 {[%emt 0:02:44]} ({Black should try} 22... e5 $1 $15 23. fxe5 Bxg5 24. exd6 Qc5) 23. Rc1 {[%emt 0:06:32] [#]} (23. Qd3 $11) 23... e5 $1 $36 {[%emt 0:06:01][%mdl 2048] Black has strong initiative.} 24. Nf5 {[%emt 0:04:24][%csl LRd6,LRe7]} exf4 {[%emt 0:00:51]} 25. h6 $2 {[%emt 0:00:54][%mdl 8192] White does not recover from this.} Bxg5 $19 {[%emt 0:05:38] Dancing on a razor blade.} ({Don't play} 25... fxe3 26. hxg7+ Kg8 27. Nxe7+ Kxg7 28. Qxd6 $18) 26. hxg7+ {[%emt 0:00:40]} (26. Rd3 $142 Bxe4 27. Nxd6) 26... Kg8 {[%emt 0:00:04]} 27. Rg3 {[%emt 0:20:40] [#]} Bxe4 $1 {[%emt 0:00:54] And now ...Rxc2 would win.} 28. Rxg5 {[%emt 0:05:54]} Bxf5 {[%emt 0:00:05]} 29. Ka1 {[%emt 0:01:09]} Qe5 {[%emt 0:05:53]} 30. c3 {[%emt 0:00:49]} f3 {[%emt 0:04:09]} 31. Nd4 {[%emt 0:03:28] [#]} bxc3 $1 {[%emt 0:00:06]} 32. bxc3 {[%emt 0:00:30] [#]} Rxd4 $1 {[%emt 0:00:08] Weighted Error Value: White=1.26/Black=0.10 (very precise)} 0-1